[Event "*** Titled Tuesday Blitz"]
[Site "Chess.com"]
[Date "2020.01.07"]
[Round "3"]
[White "volcanoexplorer"]
[Black "hansen"]
[Result "1-0"]
[WhiteElo "2562"]
[BlackElo "2862"]
[TimeControl "180+2"]
[EndTime "13:40:45 PST"]
[Termination "volcanoexplorer won by resignation"]

1. e4 {[%clk 0:03:01.9]} 1... c5 {[%clk 0:03:00.6]} 2. Nf3 {[%clk 0:03:03.1]}
2... e6 {[%clk 0:03:02]} 3. d4 {[%clk 0:03:04.6]} 3... cxd4 {[%clk 0:03:03.9]}
4. Nxd4 {[%clk 0:03:06.2]} 4... a6 {[%clk 0:03:05.2]} 5. Be2 {[%clk 0:03:07.1]}
5... Qc7 {[%clk 0:03:03.2]} 6. O-O {[%clk 0:03:07.8]} 6... Nf6 {[%clk
0:03:03.4]} 7. Nc3 {[%clk 0:03:08.4]} 7... Bb4 {[%clk 0:03:04.1]} 8. Bg5 {[%clk
0:03:05.6]} 8... Nc6 {[%clk 0:03:04.5]} 9. Bxf6 {[%clk 0:02:50.5]} 9... gxf6
{[%clk 0:03:03]} 10. Bh5 {[%clk 0:02:41.6]} 10... Rg8 {[%clk 0:03:01.6]} 11.
Nxc6 {[%clk 0:02:32.8]} 11... bxc6 {[%clk 0:02:56.4]} 12. Qf3 {[%clk 0:02:30.8]}
12... Qe5 {[%clk 0:02:55.7]} 13. Ne2 {[%clk 0:02:20.8]} 13... Rb8 {[%clk
0:02:46.4]} 14. Ng3 {[%clk 0:01:58.4]} 14... Qxb2 {[%clk 0:02:36.9]} 15. Rab1
{[%clk 0:01:51.9]} 15... Qe5 {[%clk 0:02:37.5]} 16. Qe2 {[%clk 0:01:23.4]} 16...
Be7 {[%clk 0:02:21.7]} 17. Kh1 {[%clk 0:01:09.6]} 17... Rxb1 {[%clk 0:02:20.5]}
18. Rxb1 {[%clk 0:01:10.3]} 18... d5 {[%clk 0:02:09]} 19. Bf3 {[%clk 0:00:46.7]}
19... Bc5 {[%clk 0:01:23.3]} 20. exd5 {[%clk 0:00:28.1]} 20... Qxe2 {[%clk
0:01:23.7]} 21. Bxe2 {[%clk 0:00:30]} 21... cxd5 {[%clk 0:01:23.8]} 22. Rb8
{[%clk 0:00:30.8]} 22... Kd7 {[%clk 0:01:17.6]} 23. Bxa6 {[%clk 0:00:25.2]}
23... Bxf2 {[%clk 0:01:18.5]} 24. Nh5 {[%clk 0:00:20.1]} 24... Bd4 {[%clk
0:01:19.2]} 25. Nf4 {[%clk 0:00:18.7]} 25... Be5 {[%clk 0:01:15.3]} 26. Rxc8
{[%clk 0:00:19.3]} 26... Rxc8 {[%clk 0:01:16.3]} 27. Bxc8+ {[%clk 0:00:21.2]}
27... Kxc8 {[%clk 0:01:17.8]} 28. Nd3 {[%clk 0:00:22.5]} 28... Bd4 {[%clk
0:01:10]} 29. g4 {[%clk 0:00:23.4]} 29... Kc7 {[%clk 0:01:11.3]} 30. Kg2 {[%clk
0:00:24.5]} 30... Kc6 {[%clk 0:01:12.8]} 31. a4 {[%clk 0:00:22.3]} 31... Kb6
{[%clk 0:01:13.5]} 32. Nc1 {[%clk 0:00:16]} 32... Bc3 {[%clk 0:01:03.1]} 33. Nb3
{[%clk 0:00:15.5]} 33... Kc6 {[%clk 0:00:52.5]} 34. Kf3 {[%clk 0:00:15.9]} 34...
Kd6 {[%clk 0:00:53.6]} 35. h4 {[%clk 0:00:10.1]} 35... Ke5 {[%clk 0:00:46.5]}
36. Nc5 {[%clk 0:00:03.1]} 36... Bd4 {[%clk 0:00:43.1]} 37. Nb3 {[%clk
0:00:03.6]} 37... Ba7 {[%clk 0:00:41]} 38. h5 {[%clk 0:00:04.7]} 38... f5 {[%clk
0:00:40.7]} 39. gxf5 {[%clk 0:00:05.8]} 39... Kxf5 {[%clk 0:00:41.3]} 40. Na5
{[%clk 0:00:07.4]} 40... e5 {[%clk 0:00:40.5]} 41. Nc6 {[%clk 0:00:08.9]} 41...
e4+ {[%clk 0:00:41.5]} 42. Ke2 {[%clk 0:00:10.5]} 42... Bc5 {[%clk 0:00:35.5]}
43. a5 {[%clk 0:00:11.7]} 43... Kg4 {[%clk 0:00:35.4]} 44. a6 {[%clk 0:00:12.1]}
44... f5 {[%clk 0:00:32.2]} 45. a7 {[%clk 0:00:09]} 45... Bxa7 {[%clk
0:00:32.9]} 46. Nxa7 {[%clk 0:00:10.9]} 46... f4 {[%clk 0:00:24.7]} 47. Nc6
{[%clk 0:00:09.3]} 47... Kg3 {[%clk 0:00:24.8]} 48. Nb4 {[%clk 0:00:06.3]} 48...
d4 {[%clk 0:00:14.5]} 49. Nc6 {[%clk 0:00:07.6]} 49... Kg2 {[%clk 0:00:14.2]}
50. Nxd4 {[%clk 0:00:05.5]} 50... f3+ {[%clk 0:00:15.5]} 51. Kd2 {[%clk
0:00:03.6]} 51... f2 {[%clk 0:00:14.7]} 52. Nf5 {[%clk 0:00:05]} 52... f1=N+
{[%clk 0:00:03.5]} 53. Ke2 {[%clk 0:00:06.1]} 53... Nh2 {[%clk 0:00:02.4]} 54.
Ke3 {[%clk 0:00:05.5]} 54... Kh3 {[%clk 0:00:03.7]} 55. Kxe4 {[%clk 0:00:04.3]}
55... Kg4 {[%clk 0:00:05.3]} 56. c4 {[%clk 0:00:05.9]} 56... Nf1 {[%clk
0:00:04.7]} 57. Ne3+ {[%clk 0:00:05.3]} 57... Nxe3 {[%clk 0:00:04.4]} 58. Kxe3
{[%clk 0:00:07.2]} 58... Kf5 {[%clk 0:00:04.7]} 59. Kd4 {[%clk 0:00:07.6]} 59...
Ke6 {[%clk 0:00:05.9]} 60. Kc5 {[%clk 0:00:09.1]} 60... Kd7 {[%clk 0:00:06.6]}
61. Kb6 {[%clk 0:00:09]} 61... Kc8 {[%clk 0:00:08]} 62. Kc6 {[%clk 0:00:10.2]}
1-0

[Event "*** Titled Tuesday Blitz"]
[Site "Chess.com"]
[Date "2020.01.07"]
[Round "3"]
[White "Genghis_K"]
[Black "FelixJoseYnojosa"]
[Result "1/2-1/2"]
[WhiteElo "2901"]
[BlackElo "2656"]
[TimeControl "180+2"]
[EndTime "13:41:03 PST"]
[Termination "Game drawn by agreement"]

1. e4 {[%clk 0:03:01.1]} 1... c5 {[%clk 0:03:00.8]} 2. Nf3 {[%clk 0:03:02]} 2...
Nc6 {[%clk 0:03:02.3]} 3. d4 {[%clk 0:03:01.4]} 3... cxd4 {[%clk 0:03:04.2]} 4.
Nxd4 {[%clk 0:03:03.1]} 4... e5 {[%clk 0:03:05.5]} 5. Nb5 {[%clk 0:03:03.6]}
5... d6 {[%clk 0:03:06.3]} 6. N1c3 {[%clk 0:03:05.1]} 6... a6 {[%clk 0:03:07.6]}
7. Na3 {[%clk 0:03:06.8]} 7... b5 {[%clk 0:03:08.9]} 8. Nd5 {[%clk 0:03:08]}
8... Nf6 {[%clk 0:03:10.2]} 9. Bg5 {[%clk 0:03:09.1]} 9... Be7 {[%clk
0:03:11.4]} 10. Bxf6 {[%clk 0:03:10.3]} 10... Bxf6 {[%clk 0:03:13.3]} 11. c3
{[%clk 0:03:10.9]} 11... Bg5 {[%clk 0:03:14.2]} 12. Nc2 {[%clk 0:03:11.6]} 12...
Rb8 {[%clk 0:03:14.8]} 13. Be2 {[%clk 0:03:10.5]} 13... O-O {[%clk 0:03:12.7]}
14. O-O {[%clk 0:03:11.9]} 14... a5 {[%clk 0:03:12.4]} 15. Na3 {[%clk
0:03:11.5]} 15... Na7 {[%clk 0:02:36.2]} 16. b4 {[%clk 0:02:13.9]} 16... Be6
{[%clk 0:02:26.9]} 17. Rb1 {[%clk 0:02:11.6]} 17... axb4 {[%clk 0:02:20.1]} 18.
Rxb4 {[%clk 0:02:09.4]} 18... Qa5 {[%clk 0:02:11.2]} 19. Rb3 {[%clk 0:02:08.9]}
19... Rfc8 {[%clk 0:02:05.2]} 20. Bg4 {[%clk 0:02:04.5]} 20... Bxd5 {[%clk
0:01:52.6]} 21. Qxd5 {[%clk 0:01:30.5]} 21... Rxc3 {[%clk 0:01:51.8]} 22. Be2
{[%clk 0:01:27.1]} 22... Rxb3 {[%clk 0:01:45.6]} 23. Qxb3 {[%clk 0:01:29]} 23...
Nc6 {[%clk 0:01:37.5]} 24. Nc2 {[%clk 0:01:25.6]} 24... g6 {[%clk 0:00:44.5]}
25. Rd1 {[%clk 0:01:16.9]} 25... Qc7 {[%clk 0:00:37.3]} 26. g3 {[%clk
0:01:16.3]} 26... Na5 {[%clk 0:00:34.4]} 27. Qd3 {[%clk 0:01:15.3]} 27... Nc4
{[%clk 0:00:34.8]} 28. Nb4 {[%clk 0:01:16.2]} 28... Ra8 {[%clk 0:00:18.3]} 29.
Nd5 {[%clk 0:01:17.3]} 29... Qc5 {[%clk 0:00:11.4]} 30. h4 {[%clk 0:01:18.9]}
30... Bd8 {[%clk 0:00:11.2]} 31. Qc2 {[%clk 0:01:17.4]} 31... Ra3 {[%clk
0:00:10.3]} 32. Kf1 {[%clk 0:01:16.3]} 32... Kg7 {[%clk 0:00:09.8]} 33. Rc1
{[%clk 0:01:15.7]} 33... Ba5 {[%clk 0:00:10.1]} 34. Bxc4 {[%clk 0:01:12.8]}
34... bxc4 {[%clk 0:00:12]} 35. Qxc4 {[%clk 0:01:14.4]} 35... Qxc4+ {[%clk
0:00:13.1]} 36. Rxc4 {[%clk 0:01:16.3]} 36... Rxa2 {[%clk 0:00:12.9]} 37. Rc6
{[%clk 0:01:16.8]} 37... Ra1+ {[%clk 0:00:10.5]} 38. Kg2 {[%clk 0:01:18.3]}
38... Ra2 {[%clk 0:00:11.7]} 39. Rxd6 {[%clk 0:01:15.8]} 39... Be1 {[%clk
0:00:12.5]} 40. Rf6 {[%clk 0:01:17.4]} 40... h5 {[%clk 0:00:09.8]} 41. Rf3
{[%clk 0:01:17.7]} 41... Bd2 {[%clk 0:00:10.3]} 42. Kf1 {[%clk 0:01:16]} 42...
Ba5 {[%clk 0:00:10.5]} 43. Rb3 {[%clk 0:01:13.7]} 43... Ra1+ {[%clk 0:00:10.9]}
44. Kg2 {[%clk 0:01:14.7]} 44... Ra2 {[%clk 0:00:12.4]} 45. Rb1 {[%clk
0:01:05.7]} 45... Re2 {[%clk 0:00:10.2]} 46. Kf3 {[%clk 0:01:06.4]} 46... Ra2
{[%clk 0:00:11.3]} 47. Ne3 {[%clk 0:01:07.4]} 47... Ra3 {[%clk 0:00:10.8]} 48.
Rb5 {[%clk 0:01:06.7]} 48... Bd2 {[%clk 0:00:06.7]} 49. Rxe5 {[%clk 0:01:05.1]}
49... Bxe3 {[%clk 0:00:08.3]} 50. fxe3 {[%clk 0:01:07]} 50... Ra1 {[%clk
0:00:09.4]} 51. Re8 {[%clk 0:01:05.7]} 51... Rf1+ {[%clk 0:00:10.5]} 52. Kg2
{[%clk 0:01:06.9]} 52... Re1 {[%clk 0:00:11.9]} 53. Kf2 {[%clk 0:01:08.4]} 53...
Ra1 {[%clk 0:00:13.4]} 54. e5 {[%clk 0:01:09.6]} 54... Ra4 {[%clk 0:00:14.3]}
55. Kf3 {[%clk 0:01:08.4]} 55... Rb4 {[%clk 0:00:15.3]} 56. e6 {[%clk
0:01:07.8]} 56... f5 {[%clk 0:00:13.5]} 57. Ra8 {[%clk 0:01:04.1]} 57... Kf6
{[%clk 0:00:13.2]} 58. Ra6 {[%clk 0:01:04.2]} 58... Ke7 {[%clk 0:00:13.9]} 59.
Rc6 {[%clk 0:01:04.7]} 59... Ra4 {[%clk 0:00:15]} 60. Ke2 {[%clk 0:01:03.6]}
60... Rb4 {[%clk 0:00:16.1]} 61. Kd3 {[%clk 0:01:04.6]} 61... Rg4 {[%clk
0:00:17.2]} 62. Ra6 {[%clk 0:00:58.9]} 62... Rb4 {[%clk 0:00:06.7]} 63. Ke2
{[%clk 0:00:58.1]} 63... Rc4 {[%clk 0:00:07.6]} 64. Kf2 {[%clk 0:00:59.5]} 64...
Rb4 {[%clk 0:00:08.9]} 65. Kf3 {[%clk 0:01:01]} 65... Rc4 {[%clk 0:00:10.4]} 66.
Rb6 {[%clk 0:01:02.7]} 66... Ra4 {[%clk 0:00:11.4]} 67. Rc6 {[%clk 0:01:04.4]}
67... Rb4 {[%clk 0:00:12.7]} 68. Ra6 {[%clk 0:01:01.9]} 68... Rc4 {[%clk
0:00:13.8]} 69. Ke2 {[%clk 0:01:03.1]} 69... Rb4 {[%clk 0:00:15]} 70. Kd3 {[%clk
0:01:03]} 70... Rg4 {[%clk 0:00:15.4]} 71. Rb6 {[%clk 0:01:02.8]} 71... Ra4
{[%clk 0:00:16.4]} 72. Rc6 {[%clk 0:01:01.2]} 72... Rb4 {[%clk 0:00:16.6]} 73.
Rc4 {[%clk 0:01:00.5]} 73... Rb6 {[%clk 0:00:09.4]} 74. e4 {[%clk 0:00:54.7]}
74... Kxe6 {[%clk 0:00:10.6]} 75. exf5+ {[%clk 0:00:54.4]} 75... Kxf5 {[%clk
0:00:11.3]} 76. Ke3 {[%clk 0:00:56]} 76... Rb3+ {[%clk 0:00:11.4]} 1/2-1/2

[Event "*** Titled Tuesday Blitz"]
[Site "Chess.com"]
[Date "2020.01.07"]
[Round "3"]
[White "BobanBogosavljevic"]
[Black "cukus"]
[Result "1-0"]
[WhiteElo "2737"]
[BlackElo "2457"]
[TimeControl "180+2"]
[EndTime "13:41:06 PST"]
[Termination "BobanBogosavljevic won by resignation"]

1. Nf3 {[%clk 0:03:00.9]} 1... d5 {[%clk 0:02:59.9]} 2. c4 {[%clk 0:03:02]} 2...
d4 {[%clk 0:03:00]} 3. g3 {[%clk 0:03:02.9]} 3... Nc6 {[%clk 0:03:00.8]} 4. Bg2
{[%clk 0:03:04.2]} 4... e5 {[%clk 0:03:01.8]} 5. O-O {[%clk 0:03:05.5]} 5... Nf6
{[%clk 0:03:01.4]} 6. b4 {[%clk 0:03:01]} 6... e4 {[%clk 0:02:45.9]} 7. Ng5
{[%clk 0:03:02.1]} 7... Bf5 {[%clk 0:02:46.4]} 8. d3 {[%clk 0:03:01.6]} 8...
exd3 {[%clk 0:02:43.8]} 9. exd3 {[%clk 0:02:59.6]} 9... Bxb4 {[%clk 0:02:39]}
10. Qb3 {[%clk 0:02:39]} 10... Rb8 {[%clk 0:01:43.7]} 11. Ba3 {[%clk 0:02:38.1]}
11... Bxa3 {[%clk 0:01:33.2]} 12. Qxa3 {[%clk 0:02:39.3]} 12... Qe7 {[%clk
0:01:28.3]} 13. Qxe7+ {[%clk 0:02:21.1]} 13... Nxe7 {[%clk 0:01:24.3]} 14. Re1
{[%clk 0:02:19.6]} 14... h6 {[%clk 0:01:24.3]} 15. Nf3 {[%clk 0:02:19.3]} 15...
c5 {[%clk 0:01:16.6]} 16. Nbd2 {[%clk 0:02:04.4]} 16... Be6 {[%clk 0:01:11.5]}
17. Ne5 {[%clk 0:01:43.2]} 17... O-O {[%clk 0:01:06.8]} 18. a4 {[%clk 0:01:42]}
18... Rfe8 {[%clk 0:01:04.2]} 19. a5 {[%clk 0:01:17]} 19... Ng6 {[%clk
0:01:04.4]} 20. Ndf3 {[%clk 0:00:54]} 20... Nxe5 {[%clk 0:01:00.1]} 21. Nxe5
{[%clk 0:00:54.8]} 21... Ng4 {[%clk 0:00:58.3]} 22. Nxg4 {[%clk 0:00:46.4]}
22... Bxg4 {[%clk 0:00:58.5]} 23. Rxe8+ {[%clk 0:00:46.4]} 23... Rxe8 {[%clk
0:01:00.4]} 24. Bxb7 {[%clk 0:00:47.4]} 24... Bf5 {[%clk 0:00:41.6]} 25. Rd1
{[%clk 0:00:47.7]} 25... Re2 {[%clk 0:00:38.9]} 26. a6 {[%clk 0:00:45.1]} 26...
Kf8 {[%clk 0:00:37]} 27. Kg2 {[%clk 0:00:44.7]} 27... Ke7 {[%clk 0:00:35.3]} 28.
h3 {[%clk 0:00:40.6]} 28... Kd6 {[%clk 0:00:34.2]} 29. g4 {[%clk 0:00:41.4]}
29... Bh7 {[%clk 0:00:28.7]} 30. Kf3 {[%clk 0:00:37.5]} 30... Ra2 {[%clk
0:00:28]} 31. Bd5 {[%clk 0:00:22.1]} 31... Rxa6 {[%clk 0:00:25.5]} 32. Bxf7
{[%clk 0:00:22.5]} 32... Ra2 {[%clk 0:00:25.9]} 33. h4 {[%clk 0:00:18.9]} 33...
g5 {[%clk 0:00:24.7]} 34. h5 {[%clk 0:00:19.2]} 34... a5 {[%clk 0:00:23.2]} 35.
Bg6 {[%clk 0:00:20.2]} 35... Bxg6 {[%clk 0:00:15.7]} 36. hxg6 {[%clk 0:00:22.1]}
36... Ke6 {[%clk 0:00:16.8]} 37. Rh1 {[%clk 0:00:21.9]} 37... Kf6 {[%clk
0:00:17.9]} 38. Rxh6 {[%clk 0:00:22.8]} 38... Kg7 {[%clk 0:00:19.2]} 39. Rh7+
{[%clk 0:00:23.8]} 39... Kxg6 {[%clk 0:00:20.3]} 40. Rc7 {[%clk 0:00:25.7]}
40... a4 {[%clk 0:00:21.5]} 41. Rc6+ {[%clk 0:00:26.5]} 41... Kf7 {[%clk
0:00:21]} 42. Rxc5 {[%clk 0:00:27.8]} 42... Rd2 {[%clk 0:00:20]} 43. Ke4 {[%clk
0:00:26.4]} 43... Rxf2 {[%clk 0:00:20.2]} 44. Rxg5 {[%clk 0:00:25.9]} 44... Rg2
{[%clk 0:00:19.1]} 45. Kxd4 {[%clk 0:00:25.1]} 45... a3 {[%clk 0:00:20.2]} 46.
Kc3 {[%clk 0:00:25.4]} 46... a2 {[%clk 0:00:20.5]} 47. Ra5 {[%clk 0:00:25.8]}
47... Ke6 {[%clk 0:00:20.7]} 48. g5 {[%clk 0:00:26.9]} 48... Kd6 {[%clk
0:00:19.6]} 49. g6 {[%clk 0:00:28]} 49... Kc6 {[%clk 0:00:12.3]} 50. g7 {[%clk
0:00:28.9]} 50... Kb6 {[%clk 0:00:13.2]} 51. Rxa2 {[%clk 0:00:26.9]} 51... Rxg7
{[%clk 0:00:13.1]} 52. Rh2 {[%clk 0:00:27.1]} 52... Kc5 {[%clk 0:00:13.5]} 53.
Rh5+ {[%clk 0:00:26.9]} 53... Kc6 {[%clk 0:00:14.5]} 54. d4 {[%clk 0:00:28.3]}
54... Rg4 {[%clk 0:00:15]} 55. Rh6+ {[%clk 0:00:27.2]} 55... Kc7 {[%clk
0:00:16.2]} 56. c5 {[%clk 0:00:28.6]} 56... Rg5 {[%clk 0:00:15.1]} 57. Kc4
{[%clk 0:00:28]} 57... Rf5 {[%clk 0:00:15.9]} 58. Rh7+ {[%clk 0:00:25.5]} 58...
Kc8 {[%clk 0:00:13.3]} 59. Kb5 {[%clk 0:00:25.4]} 59... Rg5 {[%clk 0:00:12.9]}
60. Kb6 {[%clk 0:00:21.2]} 60... Rg1 {[%clk 0:00:13.5]} 61. d5 {[%clk
0:00:21.5]} 61... Rf1 {[%clk 0:00:12.3]} 62. d6 {[%clk 0:00:20.4]} 62... Kd8
{[%clk 0:00:11.5]} 63. Kc6 {[%clk 0:00:21.5]} 63... Rf8 {[%clk 0:00:09.2]} 64.
Ra7 {[%clk 0:00:21.9]} 1-0

[Event "*** Titled Tuesday Blitz"]
[Site "Chess.com"]
[Date "2020.01.07"]
[Round "3"]
[White "MiroMiljkovic"]
[Black "GMBenjaminBok"]
[Result "0-1"]
[WhiteElo "2545"]
[BlackElo "2867"]
[TimeControl "180+2"]
[EndTime "13:41:14 PST"]
[Termination "GMBenjaminBok won by resignation"]

1. d4 {[%clk 0:03:01.9]} 1... Nf6 {[%clk 0:03:00.6]} 2. c4 {[%clk 0:03:03.5]}
2... e6 {[%clk 0:03:02.2]} 3. Nc3 {[%clk 0:03:05]} 3... Bb4 {[%clk 0:03:03.1]}
4. e3 {[%clk 0:03:06.6]} 4... O-O {[%clk 0:03:03.4]} 5. Bd3 {[%clk 0:03:08]}
5... d5 {[%clk 0:03:03.4]} 6. Nf3 {[%clk 0:03:08.8]} 6... dxc4 {[%clk
0:03:04.1]} 7. Bxc4 {[%clk 0:03:09.2]} 7... c5 {[%clk 0:03:05.7]} 8. O-O {[%clk
0:03:10.4]} 8... b6 {[%clk 0:03:03.2]} 9. Qe2 {[%clk 0:03:06.5]} 9... Bb7 {[%clk
0:03:02.1]} 10. Rd1 {[%clk 0:03:07.1]} 10... Qe7 {[%clk 0:02:58.4]} 11. Bd2
{[%clk 0:02:51.8]} 11... cxd4 {[%clk 0:02:54]} 12. Nxd4 {[%clk 0:02:48.1]} 12...
Nbd7 {[%clk 0:02:49.4]} 13. a3 {[%clk 0:02:48.1]} 13... Bd6 {[%clk 0:02:46.2]}
14. Ba6 {[%clk 0:02:41.4]} 14... Bxa6 {[%clk 0:02:44.2]} 15. Qxa6 {[%clk
0:02:43.3]} 15... Nc5 {[%clk 0:02:45.7]} 16. Qe2 {[%clk 0:02:41.3]} 16... Qb7
{[%clk 0:02:40.6]} 17. Ncb5 {[%clk 0:02:27.6]} 17... Be7 {[%clk 0:02:39.5]} 18.
Bb4 {[%clk 0:02:08.5]} 18... Rac8 {[%clk 0:02:33]} 19. Qf3 {[%clk 0:01:58.5]}
19... Nd5 {[%clk 0:02:28.6]} 20. Nc3 {[%clk 0:01:34.6]} 20... Nxc3 {[%clk
0:02:23.5]} 21. Qxb7 {[%clk 0:01:24.2]} 21... Nxb7 {[%clk 0:02:24]} 22. Bxc3
{[%clk 0:01:16.5]} 22... Rfd8 {[%clk 0:02:24.6]} 23. Kf1 {[%clk 0:01:11.7]}
23... a6 {[%clk 0:02:06.6]} 24. Ke2 {[%clk 0:01:11.2]} 24... Kf8 {[%clk
0:01:42.9]} 25. Nb3 {[%clk 0:01:10.6]} 25... Nd6 {[%clk 0:01:37.3]} 26. Rac1
{[%clk 0:01:06.6]} 26... f6 {[%clk 0:01:25.5]} 27. Bb4 {[%clk 0:01:00.1]} 27...
Nb5 {[%clk 0:01:04.2]} 28. Rxd8+ {[%clk 0:00:35]} 28... Rxd8 {[%clk 0:01:04.3]}
29. Bxe7+ {[%clk 0:00:35]} 29... Kxe7 {[%clk 0:01:04.9]} 30. a4 {[%clk
0:00:35.6]} 30... Nd6 {[%clk 0:01:05.3]} 31. Nd4 {[%clk 0:00:32.3]} 31... Kd7
{[%clk 0:00:55.4]} 32. f3 {[%clk 0:00:22.8]} 32... e5 {[%clk 0:00:56]} 33. Nb3
{[%clk 0:00:22.3]} 33... Rb8 {[%clk 0:00:43.6]} 34. Nd2 {[%clk 0:00:23.1]} 34...
b5 {[%clk 0:00:43.5]} 35. a5 {[%clk 0:00:22.5]} 35... Nc4 {[%clk 0:00:18]} 36.
b4 {[%clk 0:00:19.7]} 36... Rc8 {[%clk 0:00:11.9]} 37. Nb3 {[%clk 0:00:14.4]}
37... Ke7 {[%clk 0:00:12.2]} 38. Nc5 {[%clk 0:00:14.7]} 38... Rc6 {[%clk
0:00:13.8]} 39. Nd3 {[%clk 0:00:14]} 39... h5 {[%clk 0:00:12.5]} 40. h4 {[%clk
0:00:14.1]} 40... Rd6 {[%clk 0:00:08.9]} 41. e4 {[%clk 0:00:14.2]} 41... Rc6
{[%clk 0:00:08.4]} 42. Rc3 {[%clk 0:00:15.1]} 42... Nxa5 {[%clk 0:00:08.2]} 43.
Rxc6 {[%clk 0:00:10.4]} 43... Nxc6 {[%clk 0:00:10.1]} 44. Ke3 {[%clk 0:00:10.5]}
44... Kd6 {[%clk 0:00:11.3]} 45. g4 {[%clk 0:00:10.4]} 45... hxg4 {[%clk
0:00:11.1]} 46. fxg4 {[%clk 0:00:12.3]} 46... a5 {[%clk 0:00:12.3]} 47. bxa5
{[%clk 0:00:12.3]} 47... Nxa5 {[%clk 0:00:14.2]} 48. g5 {[%clk 0:00:09.3]} 48...
fxg5 {[%clk 0:00:14]} 49. hxg5 {[%clk 0:00:11.2]} 49... Nc4+ {[%clk 0:00:14.2]}
50. Ke2 {[%clk 0:00:10.1]} 50... Ke6 {[%clk 0:00:15.6]} 51. Kf3 {[%clk
0:00:06.7]} 51... Kf7 {[%clk 0:00:16]} 52. Kg4 {[%clk 0:00:07.6]} 52... Kg6
{[%clk 0:00:16.1]} 53. Kh4 {[%clk 0:00:08.8]} 53... Kf7 {[%clk 0:00:11.7]} 54.
Kg4 {[%clk 0:00:10.4]} 54... Ke6 {[%clk 0:00:12.3]} 55. Kh5 {[%clk 0:00:10.7]}
55... Kf7 {[%clk 0:00:10.5]} 56. Nb4 {[%clk 0:00:11.3]} 56... Nd6 {[%clk
0:00:10.1]} 57. Nc6 {[%clk 0:00:07.4]} 57... Ke6 {[%clk 0:00:08.4]} 58. Na5
{[%clk 0:00:02.5]} 58... Nxe4 {[%clk 0:00:08.8]} 59. Kg6 {[%clk 0:00:04.4]}
59... b4 {[%clk 0:00:09.3]} 60. Nb3 {[%clk 0:00:05.4]} 60... Kd5 {[%clk
0:00:10.3]} 61. Kf5 {[%clk 0:00:05.9]} 61... Nc5 {[%clk 0:00:10.4]} 62. Nc1
{[%clk 0:00:07.1]} 62... b3 {[%clk 0:00:11.1]} 63. Nxb3 {[%clk 0:00:07.7]} 63...
Nxb3 {[%clk 0:00:11.8]} 64. Kg6 {[%clk 0:00:09.6]} 64... Nd4 {[%clk 0:00:12.3]}
65. Kxg7 {[%clk 0:00:11.5]} 65... Ne6+ {[%clk 0:00:13.7]} 66. Kf6 {[%clk
0:00:12.4]} 66... Nxg5 {[%clk 0:00:15.1]} 67. Kxg5 {[%clk 0:00:13.4]} 67... e4
{[%clk 0:00:16.7]} 68. Kg4 {[%clk 0:00:15.3]} 68... Kd4 {[%clk 0:00:18.1]} 69.
Kg3 {[%clk 0:00:17.2]} 69... Kd3 {[%clk 0:00:19.4]} 70. Kf2 {[%clk 0:00:18.7]}
70... Kd2 {[%clk 0:00:20.8]} 71. Kg3 {[%clk 0:00:19.9]} 71... e3 {[%clk
0:00:22.7]} 0-1